Cogmind - Beta 14 @@@ ROGUE MODE // 2024.09.25 @ 19:20:17 Player: DZKane Result: Destroyed by H-77 Assassin with Coil Gun Performance ------------- Evolutions (7) 3500 Regions Visited (24) 4800 Robots Destroyed (416) 2080 Value Destroyed (26202) 26202 Prototype IDs (71) 1420 Alien Tech Used (8) 1600 Bonus (18153) 18153 TOTAL SCORE: 57755 Bonus ------- High Alert Combat Kills 5865 Follower Combat Kills 1129 Entered Garrisons 1200 Used RIF Installer 4000 Entered DSFs 500 Used Core Reset Matrix 3000 Scanned by Researcher 500 Pursued by Intercept 500 Met Sigix 2000 Friendly Fire -541 Cogmind --------- Core Integrity 0/1300 Matter 260/300 Energy 10/450 System Corruption 24% Temperature Cool (0) Movement Treading (225) Ox1 Location -3/Section 7 Parts ------- > --- POWER (3) -------- (None) > --- PROPULSION (6) --- Advanced Heavy Treads High-density Centrium Heavy Treads > --- UTILITY (10) ----- Huge Storage Unit Energy Well Advanced Terrain Scan Processor Experimental Core Analyzer Quantum Capacitor Advanced Force Field Advanced Hacking Suite > --- WEAPON (2) ------- Long-range Phase Cannon > --- INVENTORY (25) --- Energy Well (0) Long-range Terrain Scanner Improved Transmission Jammer Experimental EM Disruption Field Experimental System Shield Long-range Tractor Beam Microwarp Drive Core Cannon Gamma Bomb Array Core Stripper Sigix Broadsword Sigix Containment Pod Peak State ------------ > --- POWER ------------ Cooled Antimatter Reactor Vortex Chain Reactor > --- PROPULSION ------- Armored Heavy Treads High-density Centrium Heavy Treads High-density Centrium Heavy Treads > --- UTILITY ---------- Coolant Network Huge Storage Unit Advanced Terrain Scan Processor Experimental Targeting Computer Centrium Heavy Armor Plating Powered Armor Experimental Force Field Phase Redirector > --- WEAPON ----------- Core Stripper > --- INVENTORY -------- Particle Reactor Advanced Heavy Treads High-capacity Storage Unit Energy Well Long-range Terrain Scanner Quantum Capacitor Improved Transmission Jammer Experimental Phase Shifter Advanced Cloaking Device Improved Utility Shielding Experimental EM Disruption Field Advanced Force Field Long-range Tractor Beam High-powered Transdimensional Reconstructor Long-range Proton Cannon Enhanced Nova Cannon Core Cannon Gamma Bomb Array Sigix Broadsword Sigix Containment Pod [Rating: 209] Favorites ----------- Power Cooled Fission Core Engine Improved Deuterium Engine Power Core Cooled Fission Core Reactor Antimatter Reactor Propulsion Armored Huge Wheel Treads Light Treads Leg Carbon-fiber Leg Wheel Armored Huge Wheel Utility Huge Storage Unit Device Improved Cooling System Storage Huge Storage Unit Processor Advanced Targeting Computer Hackware Relay Coupler [NC] Protection Hardened Medium Armor Plating Artifact Phase Redirector Weapon Compact Ion Cannon Energy Gun Precision Beam Rifle Energy Cannon Compact Ion Cannon Ballistic Gun KE Penetrator Ballistic Cannon Heavy Gauss Cannon Launcher EMP Blaster Special Weapon Remote Datajack Impact Weapon Core Stripper Special Melee Weapon Datajack Build | -11 -10 -9 -9 -9 -8 -8 -8 -7 -7 -7 -7 -7 -7 -6 -6 -5 -5 -4 -4 -4 -4 -3 -3 -3 ------- Run | Yrd Mat Mat Min Exi Min Mat Gar Fac Was Fac Gar Fac Gar Fac Gar Fac Gar Fac Gar Fac DSF Res Qua Sec Slots Evolved 14 | . . 2 . . . 2 . 2 . . . . . 2 . 2 . 2 . . . 2 . . Power 2 | . . . . . . . . . . . . . . 1 . . . . . . . 1 . . Propulsion 4 | . . 1 . . . 1 . . . . . . . . . 1 . 1 . . . . . . Utility 8 | . . 1 . . . 1 . 2 . . . . . 1 . 1 . 1 . . . 1 . . Weapon . | . . . . . . . . . . . . . . . . . . . . . . . . . Parts Attached 543 | . 20 32 3 3 1 2 30 37 2 12 12 10 16 22 39 20 36 19 65 . 22 8 70 62 Power 46 | . 3 4 . . . . 3 5 1 . . 1 . 1 6 2 1 1 6 . 4 2 5 1 Engine 20 | . 1 4 . . . . 3 5 . . . . . 1 6 . . . . . . . . . Core 9 | . 2 . . . . . . . . . . . . . . 2 1 1 2 . 1 . . . Reactor 17 | . . . . . . . . . 1 . . 1 . . . . . . 4 . 3 2 5 1 Propulsion 83 | . 7 5 . . 1 1 3 11 . . . 2 . . 2 3 10 6 19 . 3 . 7 3 Treads 32 | . 7 1 . . . . . 2 . . . . . . . 1 5 . 3 . 3 . 7 3 Leg 23 | . . . . . . . . . . . . . . . . . 3 6 14 . . . . . Wheel 28 | . . 4 . . 1 1 3 9 . . . 2 . . 2 2 2 . 2 . . . . . Hover . | . . . . . . . . . . . . . . . . . . . . . . . . . Flight . | . . . . . . . . . . . . . . . . . . . . . . . . . Utility 255 | . 4 8 . 1 . 1 9 12 1 8 5 4 6 8 18 13 17 7 21 . 14 5 45 48 Device 130 | . 1 2 . . . . 2 2 1 2 1 . 4 4 13 7 12 6 12 . 8 4 28 21 Storage 16 | . 3 . . 1 . . 1 2 . . . . . . . . 1 . 1 . 1 . 2 4 Processor 9 | . . . . . . 1 . . . . . . . . . . . . 1 . . . 4 3 Hackware 28 | . . . . . . . 1 3 . 2 2 . . 3 2 3 2 1 5 . 1 1 1 1 Protection 70 | . . 6 . . . . 5 5 . 4 2 4 2 1 3 3 2 . 2 . 4 . 8 19 Artifact 2 | . . . . . . . . . . . . . . . . . . . . . . . 2 . Weapon 159 | . 6 15 3 2 . . 15 9 . 4 7 3 10 13 13 2 8 5 19 . 1 1 13 10 Energy Gun 3 | . . . . . . . . 3 . . . . . . . . . . . . . . . . Energy Cannon 92 | . 5 14 2 1 . . 8 2 . 2 3 2 6 8 6 . 1 3 10 . . . 10 9 Ballistic Gun 3 | . . . . . . . . . . . . . . . . . 2 . 1 . . . . . Ballistic Cannon 5 | . . . . . . . . . . . . . . . . . . . 2 . 1 . 2 . Launcher 25 | . . . 1 . . . 7 . . 1 2 . 4 1 3 . 4 . 2 . . . . . Special Weapon 26 | . . . . . . . . 4 . 1 2 1 . 4 4 2 1 2 4 . . 1 . . Impact Weapon 2 | . . . . . . . . . . . . . . . . . . . . . . . 1 1 Slashing Weapon . | . . . . . . . . . . . . . . . . . . . . . . . . . Piercing Weapon . | . . . . . . . . . . . . . . . . . . . . . . . . . Special Melee Weapon 3 | . 1 1 . 1 . . . . . . . . . . . . . . . . . . . . Unidentified Prototypes 32 | . . 1 . . . . . . . 1 . . . 1 . 2 . . . . . 1 18 8 Corrupted Parts 6 | . . . . . . . . . . . . . . . . . . . 5 . . . . 1 System Corruption 19 | . . . . . . . . . . . . . . . . . . . 12 . . . . 7 Parts Lost 65 | . . . . . . 1 9 6 . . . . 4 . 5 4 10 1 7 . 5 . . 13 Power 10 | . . . . . . . 3 2 . . . . . . 1 . 1 . . . 1 . . 2 Propulsion 20 | . . . . . . 1 5 3 . . . . . . 1 2 4 . 2 . . . . 2 Utility 30 | . . . . . . . . 1 . . . . 4 . 3 2 4 1 3 . 4 . . 8 Weapon 5 | . . . . . . . 1 . . . . . . . . . 1 . 2 . . . . 1 Highest Loss Streak 7 | . . . . . . 1 3 5 . . . . 1 . 2 2 3 1 3 . 4 . . 7 To Critical Strikes 1 | . . . . . . . . . . . . . . . . . . . . . . . . 1 Average Slot Usage (%) 85 | . 99 98 100 100 100 96 94 86 84 83 84 83 81 79 80 77 75 86 85 78 76 80 78 69 Engine 4 | . 8 8 11 11 11 9 8 6 6 . . . . 6 11 . . . . . . . . . Core 3 | . 5 2 . . . . . . . . . . . . . 10 10 10 6 5 4 4 . . Reactor 3 | . . . . . . . . . . 7 7 6 7 6 1 . . . 3 5 5 9 12 8 Treads 6 | . 27 3 . . . . . 1 . . . . . . . 1 13 2 1 5 10 14 14 14 Leg 3 | . . . . . . . . . . . . . . . . . 3 27 19 . . . . . Wheel 10 | . . 29 33 33 33 33 31 16 15 15 15 15 15 13 12 10 2 . 3 10 4 . . . Device 13 | . 13 11 11 11 11 9 7 6 7 7 6 7 14 13 14 19 16 19 19 15 17 19 19 13 Storage 7 | . 14 11 11 11 11 9 10 9 7 7 7 7 7 6 6 5 5 5 5 5 5 4 4 4 Processor 4 | . . . . . . 9 9 7 7 7 7 7 7 6 6 5 5 5 2 5 5 4 5 9 Hackware 3 | . . . . . . . . 12 15 10 8 7 . 6 5 5 . . 10 10 10 14 2 1 Protection 6 | . . 10 11 11 11 9 9 7 7 10 15 15 12 6 5 2 4 5 2 5 1 . 2 5 Energy Cannon 11 | . 27 21 21 17 22 18 16 5 7 7 13 14 14 7 10 5 5 7 5 5 5 4 7 8 Special Weapon 1 | . . . . . . . . 3 7 6 . . . 4 2 4 2 2 2 5 . 4 . . Peak Build Rating 209 | 6 13 23 23 24 26 30 34 50 54 57 56 57 62 74 79 99 103 110 121 120 140 149 209 206 Average Rating 77 | 6 10 19 22 22 24 29 30 37 51 55 54 54 58 67 71 92 87 101 110 120 126 147 178 194 On Entrance 67 | 6 6 13 23 23 24 26 28 23 50 54 54 55 56 62 74 79 99 90 109 120 120 140 148 201 Naked Turns . | . . . . . . . . . . . . . . . . . . . . . . . . . Heaviest Build 220 | 11 34 49 49 109 109 109 109 115 117 124 125 125 134 144 147 146 141 154 156 148 164 161 220 208 Greatest Support 250 | 20 40 60 36 36 36 48 48 56 56 56 56 56 56 56 56 56 150 115 145 56 215 215 250 250 Greatest Overweight (x) 9 | . 1 3 1 3 3 3 8 9 2 2 2 2 2 2 4 4 3 3 2 2 2 . 1 1 Average Overweight (x) 1 | . . . 1 1 3 2 2 2 1 1 2 2 2 2 2 2 1 1 1 2 . . . . Largest Inventory Capacity 25 | 8 15 15 15 25 25 25 25 25 25 25 25 25 25 25 25 25 25 25 25 25 25 25 25 25 Average Capacity 22 | 8 13 15 15 19 25 25 25 24 25 25 25 25 25 25 25 25 25 25 25 25 25 25 25 25 Most Carried 25 | 6 15 15 15 17 25 24 25 25 25 25 25 25 25 25 25 25 25 25 25 25 25 25 25 25 Average Carried 21 | 6 10 14 15 15 20 23 24 23 24 24 24 24 24 24 24 24 24 24 24 25 24 24 24 24 Final Capacity 25 | 8 15 15 15 25 25 25 25 25 25 25 25 25 25 25 25 25 25 25 25 25 25 25 25 25 Final Carried 25 | 6 15 15 15 17 25 23 25 25 25 25 24 25 25 25 25 25 25 25 25 25 25 25 25 17 Class Distribution -------------------- 42% | Mutant 29% | Scavenger-Mutant 17% | Bothacker-Mutant 5% | Commander-Mutant 4% | Botlord-Mutant Dominant Class ---------------- Mutant | -10/Materials Mutant | -9/Materials Mutant | -9/Mines Commander-Mutant | -9/Exiles Commander-Mutant | -8/Mines Commander-Mutant | -8/Materials Bothacker-Mutant | -8/Garrison Bothacker-Mutant | -7/Factory Bothacker-Mutant | -7/Waste Scavenger-Mutant | -7/Factory Mutant | -7/Garrison Mutant | -7/Factory Mutant | -7/Garrison Bothacker-Mutant | -6/Factory Mutant | -6/Garrison Mutant | -5/Factory Scavenger-Mutant | -5/Garrison Scavenger-Mutant | -4/Factory Scavenger-Mutant | -4/Garrison Botlord-Mutant | -4/Factory Botlord-Mutant | -4/DSF Botlord-Mutant | -3/Research Mutant | -3/Quarantine Mutant | -3/Section 7 Resources | -11 -10 -9 -9 -9 -8 -8 -8 -7 -7 -7 -7 -7 -7 -6 -6 -5 -5 -4 -4 -4 -4 -3 -3 -3 ----------- Run | Yrd Mat Mat Min Exi Min Mat Gar Fac Was Fac Gar Fac Gar Fac Gar Fac Gar Fac Gar Fac DSF Res Qua Sec Matter Collected 8118 | 200 200 220 150 13 227 15 352 494 20 85 286 95 357 545 716 302 675 228 978 7 244 . 940 769 Remotely 689 | . . . . . . . . . . . . . . 34 381 . 274 . . . . . . . Salvage Created 23088 | . 822 1325 593 13 102 47 1107 1360 318 94 419 237 1867 1004 1447 721 1548 682 2764 . 699 . 1179 4740 Parts 971 | . 42 80 31 . 11 4 67 70 3 3 20 7 61 58 61 33 50 20 105 . 28 . 48 169 Haulers Intercepted 10 | . 1 6 . . . . . . . . . . . . . . . . . . 1 . . 2 Recyclers Shooed 1 | . . . . . . . . 1 . . . . . . . . . . . . . . . . Parts Field Recycled . | . . . . . . . . . . . . . . . . . . . . . . . . . Retrieved Matter . | . . . . . . . . . . . . . . . . . . . . . . . . . Parts Self-Destructed . | . . . . . . . . . . . . . . . . . . . . . . . . . Prevented . | . . . . . . . . . . . . . . . . . . . . . . . . . Kills | -11 -10 -9 -9 -9 -8 -8 -8 -7 -7 -7 -7 -7 -7 -6 -6 -5 -5 -4 -4 -4 -4 -3 -3 -3 ------- Run | Yrd Mat Mat Min Exi Min Mat Gar Fac Was Fac Gar Fac Gar Fac Gar Fac Gar Fac Gar Fac DSF Res Qua Sec Combat Hostiles Destroyed 361 | . 15 23 11 . 4 1 31 14 . 2 12 4 30 15 29 10 38 10 32 . 8 . 12 60 Guns 9 | . . . . . . . . 9 . . . . . . . . . . . . . . . . Cannons 222 | . 14 22 7 . 4 1 14 4 . 2 7 3 15 12 14 7 17 3 21 . 7 . 5 43 AOE 68 | . . . 4 . . . 15 . . . 5 . 13 . 9 . 17 2 3 . . . . . Classes Destroyed 26 | . 5 2 2 . 1 . 2 2 . . 1 . . . 3 . . 1 1 . 1 . 1 4 Worker 9 | . . . . . . . . 7 . . . . . 2 . . . . . . . . . . Builder 8 | . . . 1 . . . . 2 . . . . . 2 . 1 . . . . . . 1 1 Tunneler 1 | . . . . . . . . 1 . . . . . . . . . . . . . . . . Hauler 10 | . 1 6 . . . . . . . . . . . . . . . . . . 1 . . 2 Recycler 10 | . 1 1 2 . . . . 6 . . . . . . . . . . . . . . . . Operator 2 | . 1 1 . . . . . . . . . . . . . . . . . . . . . . Watcher 7 | . 2 1 . . . . . . . . . . . 1 . 1 . . . . . . . 2 Swarmer 63 | . . 6 4 . 3 . 14 . . . 4 . 4 1 3 . 12 . 4 . . . . 8 Cutter 5 | . . . . . . . . . . . . . . . . . . . 5 . . . . . Saboteur 1 | . . . . . . . . . . . . . . . . . . 1 . . . . . . Grunt 133 | . 15 10 5 . . 1 9 8 . 2 5 3 15 4 7 3 19 1 10 . . . . 16 Brawler 12 | . . . . . . . . . . . 1 . 2 1 5 1 . 2 . . . . . . Duelist 13 | . . . 2 . . . . 1 . . 1 . 4 1 2 . 1 1 . . . . . . Protector 2 | . . . . . . . . . . . . . . . 1 . . . . . . . 1 . Researcher 6 | . . . . . . . . . . . . . . . . . . . . . . . . 6 Sentry 39 | . . 7 . . . . 2 1 . . 1 1 4 1 6 1 3 1 5 . . . . 6 Demolisher 1 | . . . . . . . . . . . . . . . 1 . . . . . . . . . Specialist 8 | . . . . . . . 1 . . . . . . . 2 1 . . 2 . 2 . . . Hunter 27 | . . . . . 1 . 1 2 . . . . . 2 1 1 . 4 3 . 4 . 2 6 Programmer 35 | . . . . . . . 4 2 . . . . 1 5 . 3 2 . 2 . 1 . 5 10 Heavy 1 | . . . . . . . . . . . . . . . . . . . . . 1 . . . Behemoth 4 | . . . . . . . . . . . . . . . 2 . 1 . 1 . . . . . S7 Guard 2 | . . . . . . . . . . . . . . . . . . . . . . . . 2 Lightning 3 | . . . . . . . . . . . . . . . . . . . . . . . 3 . Tracker 4 | . . . . . . . . . . . . . . . . . . . . . . . . 4 Combat Programmer 1 | . . . . . . . . . . . . . . . . . . . . . . . . 1 Striker 2 | . . . . . . . . . . . . . . . . . . . . . . . . 2 Executioner 3 | . . . . . . . . . . . . . . . . . . . . . . . . 3 Alpha 7 2 | . . . . . . . . . . . . . . . . . . . . . . . . 2 Fortress 1 | . . . . . . . . . . . . . . . . . . . . . . . 1 . Infiltrator 1 | . . . . . . . . . . . . . . 1 . . . . . . . . . . Best Kill Streak 9 | . 4 4 9 . 2 1 8 9 . 2 5 2 6 3 5 4 8 4 5 . 5 . 3 5 Combat Bots Only 8 | . 4 4 5 . 2 1 8 4 . 2 5 2 6 3 5 3 8 4 5 . 5 . 3 5 Max Kills in Single Turn 5 | . 1 1 3 . 1 1 3 1 . 1 1 1 3 1 2 1 5 2 1 . 1 . 1 2 Gunslinging . | . . . . . . . . . . . . . . . . . . . . . . . . . Exploded 5 | . . . 1 . . . 3 . . . 1 . 3 . 2 . 5 2 1 . . . . . Melee . | . . . . . . . . . . . . . . . . . . . . . . . . . Uniques/NPCs Destroyed . | . . . . . . . . . . . . . . . . . . . . . . . . . Combat | -11 -10 -9 -9 -9 -8 -8 -8 -7 -7 -7 -7 -7 -7 -6 -6 -5 -5 -4 -4 -4 -4 -3 -3 -3 -------- Run | Yrd Mat Mat Min Exi Min Mat Gar Fac Was Fac Gar Fac Gar Fac Gar Fac Gar Fac Gar Fac DSF Res Qua Sec Hostile Shots Fired 2783 | . 53 66 28 . 14 17 171 133 . 11 51 21 163 110 297 82 183 82 215 . 113 . 79 894 Missed 902 | . 13 14 9 . 3 4 50 54 . 3 16 7 61 45 111 30 42 24 100 . 27 . 29 260 Damage Taken 27340 | . 540 595 254 . 126 199 1610 1170 . 127 454 234 1129 883 2179 705 2739 902 2904 . 1867 . 931 7792 Core 3167 | . 149 63 35 . . 18 264 96 . . 110 31 134 65 257 67 91 38 440 . 96 . 245 968 Absorbed by Shields 7702 | . . . . . . . . . . . . . 139 102 710 287 192 4 . . . . 408 5860 Reduced by Siege Mode 996 | . . . . . . . . . . . . . . . . . 163 . 54 . 73 . 107 599 Redirected to Core 332 | . . . . . . . . . . . . . . . . . . . . . . . 200 132 Redirected to Shielding 408 | . . . . . . . . . . 48 . 18 138 . 41 60 . . . . . . 13 90 Ignored by Resistances 612 | . . . . . . . . . . . . . . . . . . . . . . . . 612 Regen/Repaired (Parts) 3151 | . . 89 . . . . . . . . . 241 . 340 . . . 168 . . . . . 2313 Core Remaining (%) 63 | 100 40 . . . 75 . 48 . . . . . 47 . 62 . 84 . . . 50 . . . Volleys Fired 1645 | . 48 67 23 2 6 2 87 112 5 17 25 13 120 76 130 97 160 39 239 1 53 8 75 240 Largest 2 | . 2 2 2 2 2 2 2 2 1 2 2 2 2 2 2 1 2 2 2 1 1 1 2 2 Hottest 233 | . 136 136 150 150 150 150 150 148 65 130 130 130 180 120 180 90 120 178 127 7 120 7 208 233 Shots Fired 2242 | . 94 134 41 4 12 4 143 183 5 22 35 23 202 97 175 97 163 45 238 1 51 8 77 388 Gun 93 | . . . . . . . . 92 . . . . . . . . 1 . . . . . . . Cannon 1974 | . 94 134 36 4 12 4 121 74 5 17 25 20 188 81 153 85 148 43 217 . 51 . 74 388 Launcher 79 | . . . 5 . . . 22 . . . 7 . 14 . 18 . 9 . 4 . . . . . Special 96 | . . . . . . . . 17 . 5 3 3 . 16 4 12 5 2 17 1 . 8 3 . Kinetic 3 | . . . . . . . . . . . . . . . . . 1 . 2 . . . . . Thermal 1919 | . 94 134 36 4 12 4 121 166 5 17 25 20 188 81 153 85 148 34 142 . 51 . 64 335 Explosive 52 | . . . . . . . . . . . 7 . 14 . 18 . 9 . 4 . . . . . Electromagnetic 172 | . . . 5 . . . 22 . . . . . . . . . . 9 73 . . . 10 53 Robot Hit Streak 65 | . 14 11 11 5 7 8 16 31 8 12 13 15 28 17 33 13 65 14 34 5 10 5 9 34 Robot Miss Streak 6 | . 3 5 2 . 2 . 6 3 . 1 2 2 1 2 2 3 1 2 3 . 2 1 3 5 Penetration Max . | . . . . . . . . . . . . . . . . . . . . . . . . . Secondary Targets . | . . . . . . . . . . . . . . . . . . . . . . . . . Capacitor 682 | . . . . . . . . . . . . . . . 55 85 147 31 214 . 51 . 68 31 Shots Hit Robots 1568 | . 62 79 23 7 7 3 58 132 5 14 20 18 135 76 115 74 139 31 163 1 42 6 52 306 Core Hits 698 | . 23 33 18 1 5 2 40 48 2 3 26 6 77 26 72 23 68 12 68 . 13 . 14 118 Critical Kills 37 | . . 1 . . . . . . . . . . 3 2 5 1 2 2 1 . 1 . 5 14 Critical Parts Destroyed . | . . . . . . . . . . . . . . . . . . . . . . . . . Critical Strikes 43 | . . 1 . . . . . 4 . . . . 3 2 5 1 2 2 3 . 1 . 5 14 Burn 4 | . . . . . . . . 4 . . . . . . . . . . . . . . . . Meltdown 37 | . . 1 . . . . . . . . . . 3 2 5 1 2 2 1 . 1 . 5 14 Corrupt 2 | . . . . . . . . . . . . . . . . . . . 2 . . . . . Melee Attacks 12 | . . 1 . 3 . . . . . . . . . . . . . . . . . . 4 4 Kinetic 8 | . . . . . . . . . . . . . . . . . . . . . . . 4 4 Impact . | . . . . . . . . . . . . . . . . . . . . . . . . . Slashing . | . . . . . . . . . . . . . . . . . . . . . . . . . Piercing . | . . . . . . . . . . . . . . . . . . . . . . . . . Sneak Attacks 4 | . . 1 . 3 . . . . . . . . . . . . . . . . . . . . Combat Hostiles 3 | . . . . 3 . . . . . . . . . . . . . . . . . . . . Follow-up Attacks . | . . . . . . . . . . . . . . . . . . . . . . . . . Damage Inflicted 52970 | . 1292 1684 675 100 175 75 2404 2311 139 241 808 405 5560 1944 4846 1798 5629 1391 5783 . 1923 . 2183 11604 Guns 1284 | . . . . . . . . 1284 . . . . . . . . . . . . . . . . Cannons 44091 | . 1292 1684 500 100 175 75 1347 1027 139 241 488 405 3915 1944 3215 1798 3709 1074 5449 . 1923 . 2056 11535 Explosions 7383 | . . . 175 . . . 1057 . . . 320 . 1645 . 1631 . 1920 317 318 . . . . . Melee 196 | . . . . . . . . . . . . . . . . . . . . . . . 127 69 Ramming 16 | . . . . . . . . . . . . . . . . . . . 16 . . . . . Kinetic 267 | . . . . . . . . . . . . . . . . . . . 71 . . . 127 69 Thermal 42200 | . 1292 1684 541 100 175 75 1561 2311 139 241 488 405 3915 1944 3215 1798 3709 839 3903 . 1923 . 1861 10081 Explosive 6151 | . . . . . . . . . . . 320 . 1645 . 1631 . 1920 317 318 . . . . . Electromagnetic 4336 | . . . 134 . . . 843 . . . . . . . . . . 235 1475 . . . 195 1454 Impact . | . . . . . . . . . . . . . . . . . . . . . . . . . Slashing . | . . . . . . . . . . . . . . . . . . . . . . . . . Piercing . | . . . . . . . . . . . . . . . . . . . . . . . . . Highest Corruption 29 | . . . . . . . 3 . . . . . 1 2 3 4 7 . 24 24 29 . 8 24 Average Corruption 8 | . . . . . . . 1 . . . . . 1 1 2 2 5 . 15 24 27 . 3 15 Corruption Purged . | . . . . . . . . . . . . . . . . . . . . . . . . . Corruption Blocked . | . . . . . . . . . . . . . . . . . . . . . . . . . Effects 379 | . . . . . . . 9 . . . . . 1 11 31 16 70 . 94 3 23 . 20 101 Message Errors 72 | . . . . . . . 2 . . . . . . 3 6 3 15 . 20 . 3 . 5 15 Matter Fused 98 | . . . . . . . 4 . . . . . . 4 7 6 22 . 15 . 6 . 8 26 Heat Flow Errors 42 | . . . . . . . 1 . . . . . . 2 4 2 6 . 11 1 1 . 1 13 Energy Discharges 55 | . . . . . . . 1 . . . . . 1 . 4 2 16 . 14 1 4 . 3 9 Parts Rejected 2 | . . . . . . . . . . . . . . . . . . . . . . . . 2 Parts Fused 5 | . . . . . . . . . . . . . . . . . 2 . . . . . . 3 Data Loss (minor) 38 | . . . . . . . . . . . . . . . 5 1 4 . 13 1 5 . 1 8 Data Loss (major) 24 | . . . . . . . . . . . . . . 1 1 1 3 . 10 . 1 . 1 6 Misfires 15 | . . . . . . . 1 . . . . . . 1 2 . 2 . 3 . . . . 6 Alerts 8 | . . . . . . . . . . . . . . . 1 1 . . 3 . . . . 3 Misdirections 3 | . . . . . . . . . . . . . . . . . . . . . 1 . . 2 Weapon Failures 17 | . . . . . . . . . . . . . . . 1 . . . 5 . 2 . 1 8 Overload Shots 12 | . . . . . . . . . . . . . 10 . . . 1 . 1 . . . . . Overflow Damage 662 | . . 4 . 16 . . 29 18 . . 4 . 18 58 48 43 102 . 32 . 94 . 23 173 Projectiles 533 | . . 4 . 16 . . 17 18 . . 4 . 9 58 . 43 48 . 26 . 94 . 23 173 Explosions 129 | . . . . . . . 12 . . . . . 9 . 48 . 54 . 6 . . . . . Melee . | . . . . . . . . . . . . . . . . . . . . . . . . . Knockbacks 1 | . . . . . . . . . . . . . . . . . . . 1 . . . . . Impact . | . . . . . . . . . . . . . . . . . . . . . . . . . Kinetic 1 | . . . . . . . . . . . . . . . . . . . 1 . . . . . Secondary . | . . . . . . . . . . . . . . . . . . . . . . . . . Self-Inflicted Damage 372 | . . . 28 . . . 122 . . . . . . . 64 . 27 86 45 . . . . . Shots 13 | . . . 1 . . . 7 . . . . . . . 2 . 1 1 1 . . . . . Rammed . | . . . . . . . . . . . . . . . . . . . . . . . . . Targets Rammed . | . . . . . . . . . . . . . . . . . . . . . . . . . Kicked . | . . . . . . . . . . . . . . . . . . . . . . . . . Crushed . | . . . . . . . . . . . . . . . . . . . . . . . . . Highest Temperature 489 | . 306 246 342 120 60 78 300 340 . 15 330 23 117 339 394 264 324 312 358 76 489 . 357 193 Average Temperature 102 | . 119 77 107 66 37 42 88 91 . 5 116 9 41 88 115 80 107 132 119 48 174 . 104 53 Received Heat Transfer 5187 | . 327 186 84 . . 117 378 537 . 54 84 132 439 105 786 174 917 . 366 . . . 12 489 Effects 13 | . 1 . . . . . 1 . . . . . . 2 4 1 . . . . 3 . 1 . Shutdowns 3 | . . . . . . . . . . . . . . 1 . . . . . . 2 . . . Energy Bleed 5 | . 1 . . . . . 1 . . . . . . . 1 1 . . . . 1 . . . Interference 4 | . . . . . . . . . . . . . . . 3 . . . . . . . 1 . Damage (minor) 1 | . . . . . . . . . . . . . . 1 . . . . . . . . . . Siege Activations 41 | . . . . . . . . . . . . . . . . 1 7 . 5 . 2 . 4 22 Total Turns 1039 | . . . . . . . . . . . . . . . . 2 113 . 115 . 61 . 237 511 Longest Duration 165 | . . . . . . . . . . . . . . . . 2 51 . 39 . 57 . 165 54 Robots Corrupted 13 | . . . . . . . 1 . . . . . . . . . . 1 6 . . . 1 4 Combat Hostiles 13 | . . . . . . . 1 . . . . . . . . . . 1 6 . . . 1 4 Parts Fried 33 | . . . . . . . 2 . . . . . . . . . . 2 11 . . . 2 16 Impact Corruptions . | . . . . . . . . . . . . . . . . . . . . . . . . . Robots Melted 53 | . 1 1 . . . . 1 1 . . . 1 3 3 6 3 4 4 4 . 1 . 5 15 Combat Hostiles 47 | . 1 1 . . . . 1 1 . . . 1 2 3 6 3 4 4 2 . 1 . 5 12 Parts Melted 173 | . 3 3 . . . . 7 11 . . . 2 9 15 17 6 15 8 23 . 2 . 15 37 Heat Transferred 53221 | . 2331 3034 840 148 259 111 2071 4721 185 333 666 555 4880 2506 4119 2331 4884 1250 5251 . 1628 . 1461 9657 Parts Sabotaged . | . . . . . . . . . . . . . . . . . . . . . . . . . Parts Stolen . | . . . . . . . . . . . . . . . . . . . . . . . . . Parts Stripped 26 | . . . . . . . . . . . . . . . . . . . . . . . 18 8 Power Chain Reactions 6 | . . . 3 . . . 3 . . . . . . . . . . . . . . . . . Alert | -11 -10 -9 -9 -9 -8 -8 -8 -7 -7 -7 -7 -7 -7 -6 -6 -5 -5 -4 -4 -4 -4 -3 -3 -3 ------- Run | Yrd Mat Mat Min Exi Min Mat Gar Fac Was Fac Gar Fac Gar Fac Gar Fac Gar Fac Gar Fac DSF Res Qua Sec Peak Influence 2228 | . 273 447 420 . 202 48 1103 764 251 91 352 287 1096 622 1312 745 1643 1012 2228 1169 923 531 182 1441 Initial 1169 | . . 25 141 . . 14 . 578 251 35 1 184 113 575 376 688 156 862 615 1169 821 519 121 50 Average 561 | . 82 189 317 . 40 20 584 525 243 58 210 193 602 473 857 388 951 871 1224 1169 871 414 113 771 Maximum Alert Level 5 | . 1 2 2 . 1 . 4 3 1 . 1 1 3 2 4 3 5 3 5 4 3 2 . 4 Low Security (%) 28 | 100 94 58 3 . 92 100 13 . 3 100 45 64 5 . . 38 5 . . . . . 100 6 Level 1 16 | . 5 28 95 . 7 . 13 34 96 . 54 35 15 25 1 24 2 . . . . 6 . 20 Level 2 21 | . . 13 1 . . . 35 47 . . . . 48 73 24 15 23 . 17 . . 93 . 19 Level 3 21 | . . . . . . . 35 17 . . . . 30 . 53 22 29 100 32 . 100 . . 24 Level 4 10 | . . . . . . . 2 . . . . . . . 20 . 35 . 26 100 . . . 28 Level 5 2 | . . . . . . . . . . . . . . . . . 2 . 23 . . . . . High Security . | . . . . . . . . . . . . . . . . . . . . . . . . . Max Security . | . . . . . . . . . . . . . . . . . . . . . . . . . Sterilizations 1 | . . . . . . . . . . . . . . . . . . . . . 1 . . . Squads Dispatched 56 | . 3 1 . . . 2 . 11 . 1 . . . 7 . 5 . 3 . . 2 . 4 17 Investigation 11 | . 2 . . . . . . 4 . . . . . 2 . 1 . 1 . . . . 1 . Extermination 12 | . . . . . . . . 2 . 1 . . . 2 . 1 . . . . . . 2 4 Reinforcement 19 | . 1 1 . . . 1 . 4 . . . . . 2 . 2 . . . . 2 . 1 5 Assault 9 | . . . . . . . . 1 . . . . . 1 . . . 2 . . . . . 5 Garrison 2 | . . . . . . 1 . . . . . . . . . 1 . . . . . . . . Intercept 3 | . . . . . . . . . . . . . . . . . . . . . . . . 3 Searches Triggered . | . . . . . . . . . . . . . . . . . . . . . . . . . Construction Impeded 1 | . . . . . . . . 1 . . . . . . . . . . . . . . . . Haulers Reinforced 2 | . . . . . . . . 1 . . . . . . . . . . . . . . . 1 Active Scanning Responses . | . . . . . . . . . . . . . . . . . . . . . . . . . Cargo Convoy Interrupts . | . . . . . . . . . . . . . . . . . . . . . . . . . Alert ID Control Effect 3 | . . . . . . . . . . . . . . 1 2 . . . . . . . . . Stealth | -11 -10 -9 -9 -9 -8 -8 -8 -7 -7 -7 -7 -7 -7 -6 -6 -5 -5 -4 -4 -4 -4 -3 -3 -3 --------- Run | Yrd Mat Mat Min Exi Min Mat Gar Fac Was Fac Gar Fac Gar Fac Gar Fac Gar Fac Gar Fac DSF Res Qua Sec Distress Signals 18 | . 2 4 . . . . . 1 . . . . . 2 . . . . 3 . . . 1 5 Communications Jammed . | . . . . . . . . . . . . . . . . . . . . . . . . . Distress Signals . | . . . . . . . . . . . . . . . . . . . . . . . . . Times Spotted 536 | . 23 42 11 . 6 6 31 32 . 3 15 6 33 34 37 19 41 11 45 . 8 1 18 114 Peak Tracking Total 8 | . 6 7 4 . 3 5 8 5 . 2 6 3 6 5 7 5 7 5 4 . 4 1 4 6 Tactical Retreats 23 | . 2 4 . . 1 . 1 1 . . 2 1 2 1 1 4 1 . 1 . . . . 1 Traps | -11 -10 -9 -9 -9 -8 -8 -8 -7 -7 -7 -7 -7 -7 -6 -6 -5 -5 -4 -4 -4 -4 -3 -3 -3 ------- Run | Yrd Mat Mat Min Exi Min Mat Gar Fac Was Fac Gar Fac Gar Fac Gar Fac Gar Fac Gar Fac DSF Res Qua Sec Traps Triggered 60 | . 2 3 . . . . 8 2 . . 4 . 9 . 11 1 12 . 4 . . . . 4 Indirectly . | . . . . . . . . . . . . . . . . . . . . . . . . . Trap Hack Attempts 25 | . 1 24 . . . . . . . . . . . . . . . . . . . . . . Triggered . | . . . . . . . . . . . . . . . . . . . . . . . . . Disarmed 4 | . 1 3 . . . . . . . . . . . . . . . . . . . . . . Reprogrammed . | . . . . . . . . . . . . . . . . . . . . . . . . . Reused . | . . . . . . . . . . . . . . . . . . . . . . . . . Traps Extracted . | . . . . . . . . . . . . . . . . . . . . . . . . . Installed . | . . . . . . . . . . . . . . . . . . . . . . . . . Triggered . | . . . . . . . . . . . . . . . . . . . . . . . . . Machines | -11 -10 -9 -9 -9 -8 -8 -8 -7 -7 -7 -7 -7 -7 -6 -6 -5 -5 -4 -4 -4 -4 -3 -3 -3 ---------- Run | Yrd Mat Mat Min Exi Min Mat Gar Fac Was Fac Gar Fac Gar Fac Gar Fac Gar Fac Gar Fac DSF Res Qua Sec Machines Disabled 80 | . 2 2 1 . . 1 8 . . 1 3 . 10 5 8 2 5 1 14 . 1 . 8 8 Max in Single Turn 2 | . 1 1 1 . . . 1 . . 1 2 . 1 1 1 1 1 1 2 . 1 . 1 1 Garrison Relay 23 | . . . . . . . 4 . . . 1 . 5 . 5 . 4 . 4 . . . . . Phase Generator 1 | . . . . . . . . . . . . . . . . . . . 1 . . . . . Machines Repaired . | . . . . . . . . . . . . . . . . . . . . . . . . . Machines Dismantled . | . . . . . . . . . . . . . . . . . . . . . . . . . Machines Sabotaged . | . . . . . . . . . . . . . . . . . . . . . . . . . Overloaded Fab Kills . | . . . . . . . . . . . . . . . . . . . . . . . . . Hacking | -11 -10 -9 -9 -9 -8 -8 -8 -7 -7 -7 -7 -7 -7 -6 -6 -5 -5 -4 -4 -4 -4 -3 -3 -3 --------- Run | Yrd Mat Mat Min Exi Min Mat Gar Fac Was Fac Gar Fac Gar Fac Gar Fac Gar Fac Gar Fac DSF Res Qua Sec Machines Accessed 84 | . 7 14 . 2 . 1 4 5 . 4 1 4 2 8 4 8 3 4 2 1 . 4 3 3 Terminals 54 | . 7 10 . . . . 4 1 . . 1 . 2 5 4 6 3 1 2 1 . 2 2 3 Fabricators 11 | . . . . . . . . 2 . 3 . 1 . 2 . 1 . 1 . . . 1 . . Repair Stations 7 | . . 2 . . . . . 1 . . . 2 . . . . . 1 . . . . 1 . Recycling Units . | . . . . . . . . . . . . . . . . . . . . . . . . . Scanalyzers 4 | . . 2 . . . . . 1 . . . . . . . . . . . . . 1 . . Garrison Access 6 | . . . . . . 1 . . . 1 . 1 . 1 . 1 . 1 . . . . . . Total Hacks 190 | . 26 42 . 2 . 1 7 13 . 8 2 14 3 18 6 15 5 9 2 2 . 6 5 4 Successful 99 | . 11 27 . 2 . 1 1 10 . 3 . 10 1 8 2 8 1 5 1 1 . 2 3 2 Failed 90 | . 15 14 . . . . 6 3 . 5 2 4 2 10 4 7 4 4 1 1 . 4 2 2 Catastrophic 21 | . 1 1 . . . . 1 1 . 4 . . 1 4 2 2 . . 1 . . 1 1 1 Database Lockouts 1 | . . 1 . . . . . . . . . . . . . . . . . . . . . . Manual 61 | . 18 17 . 1 . . 3 4 . . . 1 . 2 . 6 . 4 . . . 2 2 1 Terminals 119 | . 26 31 . . . . 7 3 . . 2 . 3 9 6 12 5 2 2 2 . 2 3 4 Fabricators 27 | . . . . . . . . 4 . 7 . 2 . 7 . 2 . 3 . . . 2 . . Repair Stations 20 | . . 4 . . . . . 1 . . . 10 . . . . . 3 . . . . 2 . Recycling Units . | . . . . . . . . . . . . . . . . . . . . . . . . . Scanalyzers 14 | . . 7 . . . . . 5 . . . . . . . . . . . . . 2 . . Garrison Access 8 | . . . . . . 1 . . . 1 . 2 . 2 . 1 . 1 . . . . . . Terminal Hacks 37 | . 5 10 . 2 . . 1 1 . . . . 1 3 2 4 1 . 1 1 . . 3 2 Record 5 | . . . . 1 . . . . . . . . . . . 1 . . . . . . 3 . Part Schematic 3 | . . 1 . . . . . 1 . . . . . 1 . . . . . . . . . . Robot Analysis 1 | . . . . . . . . . . . . . . 1 . . . . . . . . . . Prototype ID Bank 4 | . 1 3 . . . . . . . . . . . . . . . . . . . . . . Open Door 3 | . . . . . . . . . . . . . . . 1 . . . . . . . . 2 Open DSF 1 | . . . . . . . . . . . . . . . . . . . . 1 . . . . Emergency Access Points 2 | . . . . . . . 1 . . . . . . . . . . . 1 . . . . . Terminal Index 2 | . 1 . . . . . . . . . . . . . . 1 . . . . . . . . Fabricator Index 2 | . . . . . . . . . . . . . . 1 . 1 . . . . . . . . Alert Level 1 | . . 1 . . . . . . . . . . . . . . . . . . . . . . Unreport Threat 3 | . 1 1 . . . . . . . . . . . . . 1 . . . . . . . . Locate Traps 2 | . 1 1 . . . . . . . . . . . . . . . . . . . . . . Disarm Traps 1 | . . 1 . . . . . . . . . . . . . . . . . . . . . . Patrol Status 1 | . . 1 . . . . . . . . . . . . . . . . . . . . . . Hauler Manifests 1 | . . 1 . . . . . . . . . . . . . . . . . . . . . . Zone Layout 1 | . 1 . . . . . . . . . . . . . . . . . . . . . . . Patrol Navigation 2 | . . . . . . . . . . . . . . . 1 . 1 . . . . . . . Security Stations 1 | . . . . . . . . . . . . . 1 . . . . . . . . . . . Derelict Proto ID Bank 1 | . . . . 1 . . . . . . . . . . . . . . . . . . . . Fabricator Hacks 12 | . . . . . . . . 3 . 2 . 1 . 3 . 1 . 2 . . . . . . Load Schematic 7 | . . . . . . . . 2 . 1 . . . 2 . 1 . 1 . . . . . . Build 5 | . . . . . . . . 1 . 1 . 1 . 1 . . . 1 . . . . . . Repair Station Hacks 10 | . . 4 . . . . . . . . . 6 . . . . . . . . . . . . Scan Component 5 | . . 2 . . . . . . . . . 3 . . . . . . . . . . . . Repair 5 | . . 2 . . . . . . . . . 3 . . . . . . . . . . . . Recycling Unit Hacks . | . . . . . . . . . . . . . . . . . . . . . . . . . Scanalyzer 12 | . . 6 . . . . . 4 . . . . . . . . . . . . . 2 . . Insert Component 6 | . . 3 . . . . . 2 . . . . . . . . . . . . . 1 . . Analyze 6 | . . 3 . . . . . 2 . . . . . . . . . . . . . 1 . . Garrison Access Hacks 8 | . . . . . . 1 . . . 1 . 2 . 2 . 1 . 1 . . . . . . Unlock Access 6 | . . . . . . 1 . . . 1 . 1 . 1 . 1 . 1 . . . . . . Coupler Status 2 | . . . . . . . . . . . . 1 . 1 . . . . . . . . . . Unauthorized Hacks 20 | . 6 7 . . . . . 2 . . . 1 . . . 2 . 2 . . . . . . Terminals 16 | . 6 7 . . . . . 1 . . . . . . . 1 . 1 . . . . . . Botnet 6 | . 1 2 . . . . . 1 . . . . . . . 1 . 1 . . . . . . Skim 10 | . 5 5 . . . . . . . . . . . . . . . . . . . . . . Fabricators 3 | . . . . . . . . 1 . . . 1 . . . 1 . . . . . . . . Prioritize 1 | . . . . . . . . . . . . 1 . . . . . . . . . . . . Recompile 2 | . . . . . . . . 1 . . . . . . . 1 . . . . . . . . Repair Stations 1 | . . . . . . . . . . . . . . . . . . 1 . . . . . . Patch 1 | . . . . . . . . . . . . . . . . . . 1 . . . . . . Recycling Units . | . . . . . . . . . . . . . . . . . . . . . . . . . Scanalyzers . | . . . . . . . . . . . . . . . . . . . . . . . . . Garrison Access . | . . . . . . . . . . . . . . . . . . . . . . . . . Data Cores Recovered 1 | . . . . . . . . . . . . . . 1 . . . . . . . . . . Used 1 | . . . . . . . . . . . . . . 1 . . . . . . . . . . Hacking Detections 71 | . 7 13 . . . . 4 5 . 3 1 3 1 8 2 7 2 4 2 . . 4 2 3 Full Trace Events 9 | . 2 . . . . . . 3 . . . . . 2 . . 1 . . . . . 1 . Feedback Events . | . . . . . . . . . . . . . . . . . . . . . . . . . Feedback Blocked . | . . . . . . . . . . . . . . . . . . . . . . . . . Robot Schematics Acquired 2 | . . . . . . . . . . . . . . . . . . . . . . . . 2 Robots Built 3 | . . . . . . . . . . . . 3 . . . . . . . . . . . . Authchips . | . . . . . . . . . . . . . . . . . . . . . . . . . Time 116 | . . . . . . . . . . . . 116 . . . . . . . . . . . . Total Robot Build Rating 9 | . . . . . . . . . . . . 9 . . . . . . . . . . . . Part Schematics Acquired 21 | . . 4 . . . . . 3 . . . . . 1 . . . . . . . 1 . 12 Parts Built 6 | . . . . . . . . 2 . 2 . . . . . . . 2 . . . . . . Authchips 2 | . . . . . . . . . . 1 . . . . . . . 1 . . . . . . Time 260 | . . . . . . . . 84 . 42 . . . 106 . . . 28 . . . . . . Total Part Build Rating 24 | . . . . . . . . 8 . 8 . . . . . . . 8 . . . . . . Parts Repaired 5 | . . 2 . . . . . . . . . 3 . . . . . . . . . . . . Time 220 | . . 76 . . . . . . . . . 144 . . . . . . . . . . . . Parts Recycled . | . . . . . . . . . . . . . . . . . . . . . . . . . Recycled Matter . | . . . . . . . . . . . . . . . . . . . . . . . . . Retrieved Matter . | . . . . . . . . . . . . . . . . . . . . . . . . . Retrieved Components . | . . . . . . . . . . . . . . . . . . . . . . . . . Parts Scanalyzed 6 | . . 3 . . . . . 2 . . . . . . . . . . . . . 1 . . Part Schematics Acquired 6 | . . 3 . . . . . 2 . . . . . . . . . . . . . 1 . . Parts Damaged . | . . . . . . . . . . . . . . . . . . . . . . . . . Bothacking | -11 -10 -9 -9 -9 -8 -8 -8 -7 -7 -7 -7 -7 -7 -6 -6 -5 -5 -4 -4 -4 -4 -3 -3 -3 ------------ Run | Yrd Mat Mat Min Exi Min Mat Gar Fac Was Fac Gar Fac Gar Fac Gar Fac Gar Fac Gar Fac DSF Res Qua Sec Used RIF Installer 8 | . . . . . . . 2 . . . 1 . 1 . 1 . 2 . 1 . . . . . Code Merge 1 | . . . . . . . . . . . . . . . . . . . 1 . . . . . Command Fork 1 | . . . . . . . . . . . 1 . . . . . . . . . . . . . Threat Obfuscator 1 | . . . . . . . . . . . . . 1 . . . . . . . . . . . Zone Cloak 2 | . . . . . . . . . . . . . . . 1 . 1 . . . . . . . Robot Detection 1 | . . . . . . . . . . . . . . . . . 1 . . . . . . . Alert ID Control 1 | . . . . . . . 1 . . . . . . . . . . . . . . . . . Robots Hacked 53 | . . 1 . . . . . 8 . 3 3 2 . 10 3 5 3 1 10 . . 2 2 . Non-combat 28 | . . 1 . . . . . 5 . 3 . 2 . 8 1 2 . 1 2 . . 2 1 . Combat 25 | . . . . . . . . 3 . . 3 . . 2 2 3 3 . 8 . . . 1 . Robot Hacks Applied 76 | . . 1 . . . . . 14 . 4 3 3 . 15 4 11 4 1 10 . . 4 2 . parse_system 8 | . . . . . . . . . . . . . . . 2 3 . . 1 . . . 2 . no_distress 2 | . . . . . . . . . . . . 1 . . . . . . . . . 1 . . find_chute 3 | . . . . . . . . . . . . . . 1 . 1 . 1 . . . . . . map_walls 2 | . . . . . . . . . . 1 . . . 1 . . . . . . . . . . find_fabricator 5 | . . . . . . . . 1 . 1 . 1 . 2 . . . . . . . . . . drop_inventory 9 | . . . . . . . . 3 . 2 . 1 . 3 . . . . . . . . . . locate_stockpiles 1 | . . . . . . . . 1 . . . . . . . . . . . . . . . . find_recycling 2 | . . 1 . . . . . 1 . . . . . . . . . . . . . . . . ignore_parts 1 | . . . . . . . . 1 . . . . . . . . . . . . . . . . check_alert 1 | . . . . . . . . . . . . . . 1 . . . . . . . . . . purge_threat 6 | . . . . . . . . 2 . . . . . 1 . 2 . . . . . 1 . . find_terminals 1 | . . . . . . . . 1 . . . . . . . . . . . . . . . . block_reporting 3 | . . . . . . . . . . . . . . 1 . 1 . . . . . 1 . . relay_feed 1 | . . . . . . . . . . . . . . . . . . . 1 . . . . . find_shortcuts 1 | . . . . . . . . . . . . . . . . . . . 1 . . . . . find_garrison 3 | . . . . . . . . 1 . . . . . 1 . 1 . . . . . . . . scatter_targeting 1 | . . . . . . . . . . . . . . . . . 1 . . . . . . . disrupt_area 1 | . . . . . . . . . . . . . . . . . . . 1 . . . . . spike_heat 1 | . . . . . . . . . . . . . . . . . 1 . . . . . . . disable_weapons 1 | . . . . . . . . 1 . . . . . . . . . . . . . . . . reboot_system 2 | . . . . . . . . . . . 1 . . 1 . . . . . . . . . . go_dormant 1 | . . . . . . . . . . . . . . . . . . . 1 . . . . . formatsys_low 4 | . . . . . . . . . . . . . . 2 . 1 . . . . . 1 . . formatsys_high 16 | . . . . . . . . 2 . . 2 . . 1 2 2 2 . 5 . . . . . Relay Couplers Released 102 | . . . . . . . 21 . . . 4 . 25 . 19 . 18 . 15 . . . . . Machine Destruction 95 | . . . . . . . 17 . . . 4 . 22 . 19 . 18 . 15 . . . . . Programmers 7 | . . . . . . . 4 . . . . . 3 . . . . . . . . . . . Attached 20 | . . . . . . . 1 3 . . 2 . . 3 2 2 1 . 5 . . 1 . . Merged Code Value 61 | . . . . . . . . . . . . . . . . . . . 61 . . . . . Fabnet Peak Effective % . | . . . . . . . . . . . . . . . . . . . . . . . . . Robots Rewired 6 | . . . . 3 . . . . . . . . . . . . 2 . 1 . . . . . Allies Hacked 3 | . . . . . . . . . . . . . . 2 . 1 . . . . . . . . Hacks Repelled . | . . . . . . . . . . . . . . . . . . . . . . . . . Allies | -11 -10 -9 -9 -9 -8 -8 -8 -7 -7 -7 -7 -7 -7 -6 -6 -5 -5 -4 -4 -4 -4 -3 -3 -3 -------- Run | Yrd Mat Mat Min Exi Min Mat Gar Fac Was Fac Gar Fac Gar Fac Gar Fac Gar Fac Gar Fac DSF Res Qua Sec Total Allies 41 | . . . 3 3 . . . 2 . . 2 3 2 5 4 3 4 . 8 . . 2 . . Largest Group 6 | . . . 3 6 6 5 . 1 . . 1 3 3 4 3 2 2 2 4 1 1 2 2 . Highest-Rated Group 275 | . . . 40 77 77 61 . 16 . . 16 48 160 185 115 58 89 58 275 47 47 55 55 . Highest-Rated Ally 109 | . . . 16 21 21 21 . 16 . . 16 16 80 80 46 29 51 29 109 47 47 45 45 . Total Orders 3 | . . . . . . . . . . . . . . 1 . . . . 1 . 1 . . . ROAM 2 | . . . . . . . . . . . . . . . . . . . 1 . 1 . . . AID 1 | . . . . . . . . . . . . . . 1 . . . . . . . . . . Ally Attacks 258 | . . . . . 24 14 . 37 . . 7 13 16 53 30 6 13 3 42 . . . . . Total Damage 5734 | . . . . . 234 181 . 1647 . . 65 169 168 1144 443 45 271 18 1349 . . . . . Kills 48 | . . . . . 4 . . 17 . . . 1 2 12 4 . . . 8 . . . . . Allies Corrupted 1 | . . . . . . . . . . . . . . . 1 . . . . . . . . . Allies Melted 1 | . . . . . . 1 . . . . . . . . . . . . . . . . . . Turrets Deployed 3 | . . . . 1 . . . 2 . . . . . . . . . . . . . . . . Intel | -11 -10 -9 -9 -9 -8 -8 -8 -7 -7 -7 -7 -7 -7 -6 -6 -5 -5 -4 -4 -4 -4 -3 -3 -3 ------- Run | Yrd Mat Mat Min Exi Min Mat Gar Fac Was Fac Gar Fac Gar Fac Gar Fac Gar Fac Gar Fac DSF Res Qua Sec Robot Analysis Total 1 | . . . . . . . . . . . . . . 1 . . . . . . . . . . Derelict Logs Recovered 3 | . . . 3 . . . . . . . . . . . . . . . . . . . . . Drone Launches . | . . . . . . . . . . . . . . . . . . . . . . . . . Drone Recoveries . | . . . . . . . . . . . . . . . . . . . . . . . . . Exploration | -11 -10 -9 -9 -9 -8 -8 -8 -7 -7 -7 -7 -7 -7 -6 -6 -5 -5 -4 -4 -4 -4 -3 -3 -3 ------------- Run | Yrd Mat Mat Min Exi Min Mat Gar Fac Was Fac Gar Fac Gar Fac Gar Fac Gar Fac Gar Fac DSF Res Qua Sec Turns Passed 29649 | 10 2945 1605 819 331 991 65 1496 1529 414 549 482 592 1513 1777 1944 1073 2918 775 2935 50 398 402 1489 2547 Spaces Moved 14191 | 9 718 946 676 262 681 45 836 804 339 384 276 231 800 719 1129 648 994 308 1286 38 189 252 662 959 Core 5 | . . . . . . . . 5 . . . . . . . . . . . . . . . . Treads 3690 | . 683 82 . . . . . . . . . . . . . . 904 . 26 . 122 252 662 959 Legs 1057 | 9 35 . . . . . . . . . . . . . . . 7 308 698 . . . . . Wheels 9439 | . . 864 676 262 681 45 836 799 339 384 276 231 800 719 1129 648 83 . 562 38 67 . . . Hover . | . . . . . . . . . . . . . . . . . . . . . . . . . Flight . | . . . . . . . . . . . . . . . . . . . . . . . . . Fastest Speed 90 | 120 120 90 105 105 135 120 120 95 115 115 130 130 130 130 130 130 135 190 110 130 130 145 145 152 Average Speed 145 | 120 158 109 105 116 135 124 129 128 115 122 130 130 130 130 130 131 259 212 161 130 140 145 157 162 Slowest Speed 400 | 120 240 160 105 135 135 135 210 350 130 130 130 130 130 130 160 160 400 330 240 130 225 145 233 240 Overloaded Moves . | . . . . . . . . . . . . . . . . . . . . . . . . . Propulsion Burnouts . | . . . . . . . . . . . . . . . . . . . . . . . . . Robots Hopped 1 | . . . . . . . . 1 . . . . . . . . . . . . . . . . Cave-ins Triggered 1 | . . . . . . . . . . . . . . . . . . . 1 . . . . . Teleports 43 | . . . . . . . . . . . . . . . . . . . . . . . . 43 Exploration Rate (%) 53 | 2 96 86 98 70 91 10 93 17 96 8 36 8 83 25 77 17 83 9 94 2 96 7 57 65 Regions Visited 24 Branch Regions 5 Pre-discovered Areas 6 | . 2 3 . 1 . . . . . . . . . . . . . . . . . . . . Known Exits Taken 11 | . 1 1 . . 1 1 . . . 1 . 1 . 1 . 1 . 1 . 1 . 1 . . Unknown Exits Taken 4 | 1 . . 1 1 . . . . . . . . . . . . . . . . . . 1 . Scrap Searched 4 | . . . 2 . 2 . . . . . . . . . . . . . . . . . . . Spaces Dug 118 | . . . . . . . 1 12 . 2 . . 38 1 10 6 8 . 31 . . . 2 7 Terrain Destroyed 576 | . . . 28 . 3 . 4 12 . 3 18 1 106 12 110 11 56 23 142 . 2 . 9 36 Melee . | . . . . . . . . . . . . . . . . . . . . . . . . . Projectile 127 | . . . 15 . 3 . . 12 . 3 . 1 12 12 . 11 . 6 5 . 2 . 9 36 AOE 449 | . . . 13 . . . 4 . . . 18 . 94 . 110 . 56 17 137 . . . . . Terrain Rammed 1 | . . . . . . . . . . . . . . . . . . . 1 . . . . . Walls Destroyed . | . . . . . . . . . . . . . . . . . . . . . . . . . Machines Disabled 1 | . . . . . . . . . . . . . . . . . . . 1 . . . . . Actions | -11 -10 -9 -9 -9 -8 -8 -8 -7 -7 -7 -7 -7 -7 -6 -6 -5 -5 -4 -4 -4 -4 -3 -3 -3 --------- Run | Yrd Mat Mat Min Exi Min Mat Gar Fac Was Fac Gar Fac Gar Fac Gar Fac Gar Fac Gar Fac DSF Res Qua Sec Total 21719 | 8 2430 1399 742 280 740 50 1112 1138 361 450 362 503 1075 1477 1487 868 1328 420 2144 40 328 290 1110 1577 Wait 4282 | . 1623 274 41 8 46 2 77 107 . 8 16 239 44 629 87 61 60 31 457 . 31 6 192 243 Move 14162 | 8 717 945 675 261 680 44 834 802 338 384 274 230 798 718 1128 647 992 308 1283 37 188 251 661 959 Hop 1 | . . . . . . . . 1 . . . . . . . . . . . . . . . . Pick Up 267 | . 10 20 . 2 7 . 12 38 5 13 1 5 13 13 13 16 14 7 22 1 13 7 21 14 Fast Attach 191 | . 6 10 1 . . . 1 13 . 2 . 2 1 5 4 6 14 6 17 . 9 4 50 40 Attach 112 | . . 4 . . . 2 7 3 . 3 2 1 5 3 8 8 11 3 15 . 8 2 13 14 Detach 30 | . . . . . . . . . . 1 . . . . . . 7 2 5 . 3 . 8 4 Swap 246 | . 14 18 2 3 1 . 22 21 2 7 10 7 10 14 27 6 11 10 33 . 5 2 9 12 Drop 417 | . 11 36 . . . . 8 33 9 15 2 6 12 19 18 17 16 14 48 1 18 10 77 47 Fire 1645 | . 48 67 23 2 6 2 87 112 5 17 25 13 120 76 130 97 160 39 239 1 53 8 75 240 Melee 12 | . . 1 . 3 . . . . . . . . . . . . . . . . . . 4 4 Ram 1 | . . . . . . . . . . . . . . . . . . . 1 . . . . . Kick . | . . . . . . . . . . . . . . . . . . . . . . . . . Crush . | . . . . . . . . . . . . . . . . . . . . . . . . . Escape Stasis 316 | . . . . . . . 64 8 . . 32 . 72 . 72 8 36 . 24 . . . . . Rewire 12 | . . . . 1 . . . . 2 . . . . . . 2 7 . . . . . . . Trap 25 | . 1 24 . . . . . . . . . . . . . . . . . . . . . . Miscellaneous . | . . . . . . . . . . . . . . . . . . . . . . . . . Route ------- -11/Scrapyard -10/Materials (discovered 5 exits: *Mat x3 / [*Min] / Sub) -9/Materials (discovered 6 exits: *Mat x3 / *Min x2 / *Sto) -9/Mines (discovered 3 exits: *Mat x2 / *Exi) -9/Exiles -8/Mines (discovered 2 exits: *Mat x2) -8/Materials -8/Garrison (discovered 3 exits: *Fac x3) -7/Factory -7/Waste -7/Factory (discovered 2 exits: *Fac / Gar) -7/Garrison -7/Factory -7/Garrison (discovered 3 exits: *Fac x3) -6/Factory -6/Garrison (discovered 3 exits: *Fac x3) -5/Factory (discovered 3 exits: *Fac x2 / Gar) -5/Garrison (discovered 3 exits: *Fac x3) -4/Factory -4/Garrison (discovered 3 exits: *Fac x3) -4/Factory -4/DSF -3/Research -3/Quarantine -3/Section 7 (discovered 1 exit: [Res]) History --------- Turn | Location | Event 1 | -11/Scrapyard | Discovered new exit (range 3) 11 | -11/Scrapyard | Entered Materials 317 | -10/Materials | Build established: Mutant 505 | -10/Materials | Discovered new exit (range 16) 574 | -10/Materials | Discovered new exit (range 16) 800 | -10/Materials | Learned Storage trap positions 921 | -10/Materials | Learned Storage stockpile data 964 | -10/Materials | Identified exit to Materials 964 | -10/Materials | Identified exit to Subcaves 997 | -10/Materials | Learned 4 Recycling zone layouts 1039 | -10/Materials | Learned location of Mines (-10) 1068 | -10/Materials | Learned Storage security intel 1159 | -10/Materials | Learned location of Recycling (-9) 1219 | -10/Materials | Learned 2 Storage zone layouts 1744 | -10/Materials | Core integrity fell below 50% 2956 | -10/Materials | Entered another Materials area 2956 | -9/Materials | Evolved 2 slots: Propulsion x1, Utility x1 3267 | -9/Materials | Discovered new exit (range 16) 3647 | -9/Materials | Learned Storage trap positions 3699 | -9/Materials | Discovered new exit (range 16) 3737 | -9/Materials | Identified exit to Storage 3801 | -9/Materials | Learned Storage emergency access door positions 3830 | -9/Materials | Learned location of Zion (-7) 3849 | -9/Materials | Repaired Adv. Beam Cannon? 3853 | -9/Materials | Repaired Hvy. Ion Engine 3861 | -9/Materials | Identified exit to Mines 3861 | -9/Materials | Identified exit to Materials 3884 | -9/Materials | Central database locked down 3902 | -9/Materials | Learned location of Mines (-9) 4367 | -9/Materials | Discovered exit to Materials (range 16) 4561 | -9/Materials | Entered Mines 4677 | -9/Mines | Learned Materials terminal intel 4788 | -9/Mines | Learned Materials stockpile data 5129 | -9/Mines | YI-UF0 nonchalantly dropped a Grenade Launcher on the ground 5195 | -9/Mines | Deemed a non-threat by the Exiles lab entrance 5196 | -9/Mines | Discovered new exit (range 5) 5306 | -9/Mines | Assisted by bots powering up and referring to "LRC-V3" 5380 | -9/Mines | Entered Exiles 5380 | -9/Exiles | Found Exiles lab destroyed 5380 | -9/Exiles | Accompanied by 3 allies 5561 | -9/Exiles | Opened EX-Vault 5565 | -9/Exiles | DAS Turret deployed 5567 | -9/Exiles | Found Deploy-a-Sentry 5570 | -9/Exiles | Found Deploy-a-Sentry 5689 | -9/Exiles | Discovered new exit (range 14) 5711 | -9/Exiles | Entered Mines 5711 | -8/Mines | Accompanied by 6 allies 5720 | -8/Mines | Build established: Commander-Mutant 6702 | -8/Mines | Entered Materials 6702 | -8/Materials | Accompanied by 5 allies 6702 | -8/Materials | Evolved 2 slots: Propulsion x1, Utility x1 6704 | -8/Materials | Loaded intel: 12 terminal locations 6715 | -8/Materials | Identified exit to Garrison 6736 | -8/Materials | Garrison activated, responded to threat 6767 | -8/Materials | Entered Garrison 6786 | -8/Garrison | Lost 5 allies 6845 | -8/Garrison | Triggered checkpoint 6877 | -8/Garrison | Triggered checkpoint 6913 | -8/Garrison | Garrison Relay disabled 6949 | -8/Garrison | Triggered checkpoint 6998 | -8/Garrison | Destroyed 8 combat bots 7057 | -8/Garrison | Build established: Mutant 7126 | -8/Garrison | Triggered checkpoint 7203 | -8/Garrison | Triggered checkpoint 7339 | -8/Garrison | Garrison Relay disabled 7383 | -8/Garrison | Discovered new exit (range 11) 7394 | -8/Garrison | Installed Relay Interface Framework 7435 | -8/Garrison | Expanded RIF knowledge: Alert ID Control 7478 | -8/Garrison | Triggered checkpoint 7652 | -8/Garrison | Discovered new exit (range 10) 7660 | -8/Garrison | Triggered checkpoint 7693 | -8/Garrison | Garrison Relay disabled 7697 | -8/Garrison | Build established: Bothacker-Mutant 7938 | -8/Garrison | Garrison Relay disabled 8063 | -8/Garrison | Discovered new exit (range 11) 8073 | -8/Garrison | Triggered checkpoint 8086 | -8/Garrison | Core integrity fell below 50% 8116 | -8/Garrison | Lost 3 parts (1p2n) 8263 | -8/Garrison | Entered Factory 8263 | -7/Factory | Evolved 2 slots: Utility x2 8647 | -7/Factory | Lost 5 parts (1p3n1u) 8701 | -7/Factory | DAS Turret deployed 8837 | -7/Factory | DAS Turret deployed 8936 | -7/Factory | Build established: Scavenger-Mutant 9063 | -7/Factory | First assault squad dispatched 9094 | -7/Factory | Fabricated Arm. Huge Wheel? 9395 | -7/Factory | Build established: Bothacker-Mutant 9792 | -7/Factory | Sucked down chute 9792 | -7/Factory | Entered Waste 9792 | -7/Waste | The area was eerily silent 10001 | -7/Waste | Discovered new exit (range 13) 10206 | -7/Waste | Entered Factory 10357 | -7/Factory | Fabricated Arm. Huge Wheel? 10754 | -7/Factory | Discovered new exit (range 10) 10755 | -7/Factory | Identified exit to Garrison 10755 | -7/Factory | Entered Garrison 10783 | -7/Garrison | Expanded RIF knowledge: Command Fork 10811 | -7/Garrison | Triggered checkpoint 10816 | -7/Garrison | Build established: Mutant 10861 | -7/Garrison | Garrison Relay disabled 10972 | -7/Garrison | Triggered checkpoint 11096 | -7/Garrison | Discovered new exit (range 15) 11237 | -7/Garrison | Entered Factory 11305 | -7/Factory | Repaired Imp. Propulsion Shielding 11368 | -7/Factory | Repaired Antimatter Reactor 11635 | -7/Factory | Fabricated G-47 Trooper (x3) 11713 | -7/Factory | Repaired Arm. Huge Wheel 11822 | -7/Factory | Identified exit to Garrison 11829 | -7/Factory | Entered Garrison 11829 | -7/Garrison | Accompanied by 3 allies 11843 | -7/Garrison | Triggered checkpoint 11895 | -7/Garrison | Garrison Relay disabled 11942 | -7/Garrison | Lost 3 allies 11968 | -7/Garrison | Triggered checkpoint 11989 | -7/Garrison | Learned Factory security intel 12031 | -7/Garrison | Expanded RIF knowledge: Threat Obfuscation 12099 | -7/Garrison | Triggered checkpoint 12292 | -7/Garrison | Discovered new exit (range 15) 12341 | -7/Garrison | Triggered checkpoint 12443 | -7/Garrison | Garrison Relay disabled 12563 | -7/Garrison | Triggered checkpoint 12645 | -7/Garrison | Discovered new exit (range 10) 12700 | -7/Garrison | Core integrity fell below 50% 12884 | -7/Garrison | Garrison Relay disabled 12927 | -7/Garrison | Garrison Relay disabled 13026 | -7/Garrison | Triggered checkpoint 13117 | -7/Garrison | Build established: Bothacker-Mutant 13263 | -7/Garrison | Triggered checkpoint 13278 | -7/Garrison | Garrison Relay disabled 13309 | -7/Garrison | Discovered new exit (range 15) 13325 | -7/Garrison | Found embedded Infiltrators 13342 | -7/Garrison | Entered Factory 13342 | -6/Factory | Accompanied by 2 allies 13342 | -6/Factory | Evolved 2 slots: Power x1, Utility x1 13692 | -6/Factory | First assault squad dispatched 14906 | -6/Factory | Spotted B-75 Beast 14919 | -6/Factory | P-60 Hacker assimilated allied Administrator 5a 14969 | -6/Factory | Found Launcher Loader 15093 | -6/Factory | Build established: Mutant 15118 | -6/Factory | Identified exit to Garrison 15119 | -6/Factory | Entered Garrison 15141 | -6/Garrison | Triggered checkpoint 15176 | -6/Garrison | Garrison Relay disabled 15257 | -6/Garrison | Triggered checkpoint 15395 | -6/Garrison | Discovered new exit (range 11) 15425 | -6/Garrison | Triggered checkpoint 15469 | -6/Garrison | Garrison Relay disabled 15783 | -6/Garrison | Triggered checkpoint 15819 | -6/Garrison | Triggered checkpoint 15857 | -6/Garrison | Discovered new exit (range 10) 15889 | -6/Garrison | Rescued a captive Derelict 15893 | -6/Garrison | Rescued a captive Derelict 15917 | -6/Garrison | Triggered checkpoint 15940 | -6/Garrison | Garrison Relay disabled 16142 | -6/Garrison | Spotted B-75 Beast 16264 | -6/Garrison | Build established: Bothacker-Mutant 16286 | -6/Garrison | Garrison Relay disabled 16299 | -6/Garrison | Triggered checkpoint 16344 | -6/Garrison | Spotted B-75 Beast 16370 | -6/Garrison | Discovered new exit (range 15) 16400 | -6/Garrison | Destroyed B-75 Beast 16430 | -6/Garrison | Destroyed B-75 Beast 16516 | -6/Garrison | Found Unknown Device 16516 | -6/Garrison | Identified Quantum Capacitor 16529 | -6/Garrison | Found Quantum Capacitor 16573 | -6/Garrison | Triggered checkpoint 16695 | -6/Garrison | Triggered checkpoint 16829 | -6/Garrison | Build established: Scavenger-Mutant 16954 | -6/Garrison | Expanded RIF knowledge: Zone Cloak 17021 | -6/Garrison | Garrison Relay disabled 17063 | -6/Garrison | Entered Factory 17063 | -5/Factory | Evolved 2 slots: Propulsion x1, Utility x1 17189 | -5/Factory | Discovered new exit (range 8) 17404 | -5/Factory | Build established: Mutant 17885 | -5/Factory | Discovered new exit (range 8) 18087 | -5/Factory | Garrison activated, responded to threat 18115 | -5/Factory | Build established: Scavenger-Mutant 18135 | -5/Factory | Identified exit to Garrison 18136 | -5/Factory | Entered Garrison 18256 | -5/Garrison | Spotted B-75 Beast 18290 | -5/Garrison | Destroyed B-75 Beast 18328 | -5/Garrison | Lost 3 parts (1n1u1w) 18340 | -5/Garrison | Destroyed 8 combat bots 18348 | -5/Garrison | Triggered checkpoint 18409 | -5/Garrison | Destroyed 7 combat bots 18702 | -5/Garrison | Discovered new exit (range 12) 18724 | -5/Garrison | Expanded RIF knowledge: Robot Detection 18806 | -5/Garrison | Triggered checkpoint 18876 | -5/Garrison | Garrison Relay disabled 19114 | -5/Garrison | Triggered checkpoint 19168 | -5/Garrison | Discovered new exit (range 12) 19396 | -5/Garrison | Garrison Relay disabled 19544 | -5/Garrison | Triggered checkpoint 19646 | -5/Garrison | Expanded RIF knowledge: Zone Cloak 19734 | -5/Garrison | Garrison Relay disabled 19908 | -5/Garrison | Discovered new exit (range 8) 20216 | -5/Garrison | Triggered checkpoint 20266 | -5/Garrison | Garrison Relay disabled 21054 | -5/Garrison | Entered Factory 21054 | -4/Factory | Accompanied by 2 allies 21054 | -4/Factory | Evolved 2 slots: Propulsion x1, Utility x1 21304 | -4/Factory | First assault squad dispatched 21793 | -4/Factory | Fabricated Arm. Huge Wheel (x2) 21829 | -4/Factory | Identified exit to Garrison 21829 | -4/Factory | Entered Garrison 21869 | -4/Garrison | Expanded RIF knowledge: Code Merge 22190 | -4/Garrison | Triggered checkpoint 22237 | -4/Garrison | Garrison Relay disabled 22267 | -4/Garrison | Triggered checkpoint 22268 | -4/Garrison | Found embedded Infiltrators 22496 | -4/Garrison | Spotted B-86 Titan 22515 | -4/Garrison | Rewired B-86 Titan 22519 | -4/Garrison | Triggered checkpoint 22599 | -4/Garrison | Lost 4 allies 22651 | -4/Garrison | Triggered checkpoint 22685 | -4/Garrison | System corruption reached 10% 22773 | -4/Garrison | Triggered checkpoint 22856 | -4/Garrison | Discovered new exit (range 11) 23095 | -4/Garrison | Discovered new exit (range 14) 23225 | -4/Garrison | Triggered checkpoint 23313 | -4/Garrison | Phase Generator disabled 23458 | -4/Garrison | Lost 3 parts (2n1w) 23479 | -4/Garrison | Triggered checkpoint 23639 | -4/Garrison | Garrison Relay disabled 23850 | -4/Garrison | Crushed by falling debris 23881 | -4/Garrison | Lost 3 parts (2u1w) 23924 | -4/Garrison | Discovered new exit (range 15) 23958 | -4/Garrison | Identified exit to Factory 23983 | -4/Garrison | Triggered checkpoint 24099 | -4/Garrison | Garrison Relay disabled 24409 | -4/Garrison | Spotted B-86 Titan 24451 | -4/Garrison | Destroyed B-86 Titan 24511 | -4/Garrison | Found Relay Coupler [Proto] 24518 | -4/Garrison | Found Relay Coupler [Proto] 24520 | -4/Garrison | Found Relay Coupler [Proto] 24523 | -4/Garrison | Found Relay Coupler [Proto] 24615 | -4/Garrison | Triggered checkpoint 24655 | -4/Garrison | Garrison Relay disabled 24764 | -4/Garrison | Entered Factory 24764 | -4/Factory | Accompanied by 1 ally 24769 | -4/Factory | Build established: Botlord-Mutant 24814 | -4/Factory | Identified exit to DSF 24814 | -4/Factory | Entered DSF 24814 | -4/DSF | Accompanied by 1 ally 24845 | -4/DSF | Additional patrols routed to DSF 24887 | -4/DSF | Lost 4 parts (1p3u) 24994 | -4/DSF | Found Gamma Bomb Array 25101 | -4/DSF | Discovered new exit (range 16) 25141 | -4/DSF | Identified exit to Research 25157 | -4/DSF | Sterilization system engaged 25177 | -4/DSF | Ambient heat levels rising (+10) 25192 | -4/DSF | Ambient heat levels rising (+10) 25207 | -4/DSF | Ambient heat levels rising (+10) 25212 | -4/DSF | Entered Research 25212 | -3/Research | Evolved 2 slots: Power x1, Utility x1 25422 | -3/Research | Discovered new exit (range 3) 25425 | -3/Research | Identified exit to Quarantine 25614 | -3/Research | Entered Quarantine 25614 | -3/Quarantine | Accompanied by 2 allies 25630 | -3/Quarantine | Found Alien Slashing Weapon 25652 | -3/Quarantine | Found Alien Artifact 25652 | -3/Quarantine | Identified Phase Redirector 25744 | -3/Quarantine | Found Alien Artifact 25905 | -3/Quarantine | Met incapacitated Sigix Warrior 25905 | -3/Quarantine | Lockdown squad dispatched 25912 | -3/Quarantine | Acquired the access code to the Sigix quarantine chamber 25915 | -3/Quarantine | Unlocked Sigix quarantine chamber 25925 | -3/Quarantine | Found Sigix Containment Pod 26036 | -3/Quarantine | Spotted Lightning 26037 | -3/Quarantine | Spotted Lightning 26056 | -3/Quarantine | Destroyed Lightning 26058 | -3/Quarantine | Spotted Lightning 26080 | -3/Quarantine | Destroyed Lightning 26089 | -3/Quarantine | Destroyed Lightning 26119 | -3/Quarantine | Found Prototype Processor 26119 | -3/Quarantine | Identified Exp. Targeting Computer 26126 | -3/Quarantine | Found Prototype Device 26126 | -3/Quarantine | Identified Exp. Phase Shifter 26163 | -3/Quarantine | Found Alien Energy Cannon 26163 | -3/Quarantine | Identified Core Cannon 26280 | -3/Quarantine | Found Unknown Protection 26280 | -3/Quarantine | Identified Powered Armor 26287 | -3/Quarantine | Found Powered Armor 26388 | -3/Quarantine | Found Alien Artifact 26388 | -3/Quarantine | Identified Core Reset Matrix 26388 | -3/Quarantine | Identified Sigix Broadsword 26388 | -3/Quarantine | Identified Hpw. Transdimensional Reconstructor 26388 | -3/Quarantine | Used Core Reset Matrix 26392 | -3/Quarantine | Sensed 9 artifacts in vicinity 26413 | -3/Quarantine | Build established: Mutant 26442 | -3/Quarantine | Cryocooling Duct disabled 26457 | -3/Quarantine | Ambient heat levels rising (+20) 26457 | -3/Quarantine | Non-combat units ordered to evacuate 26545 | -3/Quarantine | Found Terrabomb 26745 | -3/Quarantine | Found Core Stripper 26847 | -3/Quarantine | Spotted Fortress 26863 | -3/Quarantine | Destroyed Fortress 26868 | -3/Quarantine | Found Prototype Device 26868 | -3/Quarantine | Identified Exp. Force Field 26875 | -3/Quarantine | Found Prototype Device 26875 | -3/Quarantine | Identified Thermal Barrier 26885 | -3/Quarantine | Found Prototype Device 26885 | -3/Quarantine | Identified Exp. EM Disruption Field 26910 | -3/Quarantine | Found Prototype Reactor 26910 | -3/Quarantine | Identified Vortex Chain Reactor 26938 | -3/Quarantine | Found Prototype Protection 26938 | -3/Quarantine | Identified Centrium Heavy Armor Plating 26943 | -3/Quarantine | Found Unknown Protection 26943 | -3/Quarantine | Identified Hvy. Insulated Plating 27096 | -3/Quarantine | Discovered new exit (range 5) 27103 | -3/Quarantine | Entered Section 7 27104 | -3/Section 7 | Sensed 19 artifacts in vicinity 27130 | -3/Section 7 | Found Integrity Redistributor 27376 | -3/Section 7 | Used Integrity Redistributor, redistributed integrity from core (-391) 27377 | -3/Section 7 | Core integrity fell below 50% 27471 | -3/Section 7 | Discovered new exit (range 15) 27504 | -3/Section 7 | Found Prototype Hackware 27557 | -3/Section 7 | Spotted S7 Guard 27598 | -3/Section 7 | Destroyed S7 Guard 27615 | -3/Section 7 | Found Core Regenerator 27615 | -3/Section 7 | Used Core Regenerator, restored core integrity (+325) 27626 | -3/Section 7 | System corruption reached 10% 27648 | -3/Section 7 | Spotted B-86 Titan 27710 | -3/Section 7 | Spotted Alpha 7 27714 | -3/Section 7 | Spotted Alpha 7 27753 | -3/Section 7 | Destroyed Alpha 7 27780 | -3/Section 7 | Destroyed Alpha 7 27918 | -3/Section 7 | Spotted S7 Guard 27934 | -3/Section 7 | Destroyed S7 Guard 27954 | -3/Section 7 | Found Navigation Efficiency Matrix 27954 | -3/Section 7 | Installed Navigation Efficiency Matrix, process failed with unexpected side effects 28246 | -3/Section 7 | Build established: Scavenger-Mutant 28353 | -3/Section 7 | First assault squad dispatched 28405 | -3/Section 7 | Found Microwarp Drive 28869 | -3/Section 7 | Spotted Executioner 28870 | -3/Section 7 | Spotted Executioner 28939 | -3/Section 7 | Scanned by Researcher 28940 | -3/Section 7 | Intercept squad dispatched 28955 | -3/Section 7 | Spotted Tracker 28955 | -3/Section 7 | Spotted Tracker 28966 | -3/Section 7 | Destroyed Tracker 28978 | -3/Section 7 | Destroyed Tracker 29098 | -3/Section 7 | Spotted Combat Programmer 29105 | -3/Section 7 | Destroyed Combat Programmer 29161 | -3/Section 7 | Build established: Mutant 29252 | -3/Section 7 | Destroyed Executioner 29263 | -3/Section 7 | Destroyed Executioner 29287 | -3/Section 7 | Found Prototype Processor 29287 | -3/Section 7 | Identified Exp. Core Analyzer 29383 | -3/Section 7 | Intercept squad dispatched 29396 | -3/Section 7 | Spotted Tracker 29396 | -3/Section 7 | Spotted Tracker 29422 | -3/Section 7 | Destroyed Tracker 29432 | -3/Section 7 | Destroyed Tracker 29447 | -3/Section 7 | Found Prototype Device 29447 | -3/Section 7 | Identified Exp. Phase Shifter 29468 | -3/Section 7 | Spotted B-99 Colossus 29471 | -3/Section 7 | Warped through subspace 29471 | -3/Section 7 | Spotted Striker 29471 | -3/Section 7 | Spotted Striker 29494 | -3/Section 7 | Destroyed Striker 29508 | -3/Section 7 | Destroyed Striker 29509 | -3/Section 7 | Spotted Executioner 29527 | -3/Section 7 | Spotted Executioner 29537 | -3/Section 7 | Core integrity fell below 20% 29550 | -3/Section 7 | Destroyed Executioner 29570 | -3/Section 7 | Lost 7 parts (2p1n3u1w) 29650 | -3/Section 7 | Destroyed by H-77 Assassin with Coil Gun Last Messages --------------- 29595_ K-01 Serf cleans the Hull. 29602_ System corrupted: Matter fused (-9). 29602_ K-01 Serf cleans the Hull. 29603_ ALERT: Significant disruption in Zone 6Y, multiple assault carriers dispatched. 29609_ K-01 Serf cleans the Hull. 29619_ System corrupted: Matter fused (-9). 29634_ System corrupted: FCS attempts to trigger Lrn. Phase Cannon. 29641_ Navigation matrix triggers involuntary quantum shift. 29641_ Slug penetrates Hull. 29644_ Coolant Network destroyed. 29647_ Penetrated by Slug. 29647_ Slug penetrates Hull. 29647_ Penetrated by Slug. 29650_ Critical hit (Destroy). 29650_ Hdn. Centrium Heavy Treads destroyed. 29650_ Penetrated by Slug. [Achievement: Torch] Map ----- +----------------------------------------------------+ | ?????????????????????????????????????????????????? | | ?????????????????????????????????????????????????? | | ?????????????????????????????????????????????????? | | ?????????????????????????????????????????????????? | | ?????????????????????????????????????????????????? | | ######???######???############################???? | | """"""?!?#T T#"" #"" "]" ""#"""""""""" ??? | | """"""?!!" !#*" """ "*#"" " " " "" | | #### # "!#"" ""# """"" | | ######## #### ! " | | T $$! "" | | $%"" "" | | !$$" "" | | =% " """"""" "" | | [! "? " | | " "%[ """" | | "" " | | "" """" [!%[ | | """" " " =%[! | | "" " = *%| | | """"""" $%=!= | | "????" = !% | | """"""" !%! """"""""""""" | | != """"""""""" | | " " " " " " | | " @ | | """ | | " %% | | " ! ! | | """" " " " % = hh """" " | | " " " " """"""""" ""??" | | "???" " """ ! "??????" "???"" | | """""""""" !%!k """"????""" ""??" | | " " " " " """ "?" """" = | | T " " " " """"""""""?""" | | " " " "" "??????" | | """"""""""""" | | " | | " | | """"""""" | | "???????" """""""""""" """"" | | ?"""""""" ""??????????"" "?" | | ?" """""""?????" " "?" | | """ % ??? """?" | | " !! " "???" | | % " ??? | | % """ ?? | | " ? | | ?? | | ????? | +----------------------------------------------------+ Best States ------------- Heat Dissipation 188 Coolant Potential 100 Energy Generation 79 Energy Capacity 1560 Matter Stores 300 Matter Capacity 300 Sight Range 16 Terrain Scan Range 24 Terrain Scan Density 210 Base Temperature (-) 200 Corruption Containment 8 Armor Coverage 1200 Resistance: EM 75 Propulsion Shielding 66 Utility Shielding 66 Point Defense Rating 240 Phase Shifting 20 Evasion (%) 60 Targeting Accuracy 12 Target Analysis 8 Core Analysis 8 Recoil Reduction 6 Particle Charging 15 Offensive Hacking 14 Defensive Hacking 14 Relay Coupler Types 3 Relay Coupler Value 101 Authchip Count 2 Item Schematics ----------------- Electron Diverter | -3/Section 7 | Archive Ionic Axe | -3/Section 7 | Archive Exp. Coolant Injector | -3/Section 7 | Archive Tesla Bomb Launcher | -3/Section 7 | Archive Exp. Cooling System | -3/Section 7 | Archive Exp. Flexi-carbon Leg | -3/Section 7 | Archive Spectral Analyzer | -3/Section 7 | Archive Enh. Force Rifle | -3/Section 7 | Archive Adv. Micro-nuke Launcher | -3/Section 7 | Archive Exp. Matter Compressor | -3/Section 7 | Archive Hvy. Wave Gun | -3/Section 7 | Archive Hvy. Proton Cannon | -3/Section 7 | Archive Robot Schematics ------------------ K-01 Serf | -3/Section 7 | Archive O-32 Director | -3/Section 7 | Archive Fabricated ------------ Arm. Huge Wheel | x2 | -7/Factory Arm. Huge Wheel | x2 | -7/Factory | Authchip G-47 Trooper | x3 | -7/Factory | Preloaded Arm. Huge Wheel | x2 | -4/Factory | Authchip Alien Tech Used ----------------- Phase Redirector Core Cannon Core Reset Matrix Core Stripper Integrity Redistributor Core Regenerator Navigation Efficiency Matrix High-powered Transdimensional Reconstructor Achievements -------------- Nope Overkill Pyromaniac Signature Confirmed Sunderer Torch Challenges ------------ None Game ------ Seed TeslaAngularPower Manual? 0 Play Time 06:03:41 Cumulative 189.3 hours Start 2024.09.22 @ 18:52:10 End 2024.09.25 @ 19:20:17 Sessions 8 Manual Loads 0 Difficulty Rogue Special Mode None Game No. 108 Rogue 108 Adventurer 0 Explorer 0 Win Type - Total 6 Types 6/0/0/0/0/0/0/0/0 Lore% 64 Gallery% 68 Achievement% 60 Wizard Run 0 Options --------- Layout 1 ASCII 0 Keyboard 0 Movement Numpad Keybinds 0 Fullscreen 1 Font 24/Smallcaps Map View 50x35 Zoom Use 0% Tactical HUD 1 Map Filters NONE Filters NONE Steam 1 RUN: f318c908-56d4-470b-877b-31b68546438e